bitfinex/quotes_BTCUSD_20250316
["timestamp","ask_amount","ask_price","bid_price","bid_amount"]
[1742091012131,0.00246284,84004.0,84003.0,0.52626619]
[1742091012489,0.00246284,84004.0,84003.0,0.54080704]
[1742091012890,0.00246284,84004.0,84003.0,0.52626619]
[1742091013100,0.00246284,84004.0,84003.0,0.54080704]
[1742091015043,0.02112351,84004.0,84003.0,0.54080704]
[1742091019834,0.00246284,84004.0,84003.0,0.54080704]
[1742091022505,0.00246284,84004.0,84003.0,1.29684704]
[1742091022993,0.02112293,84004.0,84003.0,1.29684704]
[1742091024496,0.02112293,84004.0,84003.0,1.29701634]
[1742091026014,0.02112293,84004.0,84003.0,1.30201634]
[1742091029972,0.00246284,84004.0,84003.0,1.30201634]
[1742091030937,8.4e-07,84004.0,84003.0,1.65201634]
[1742091031199,8.4e-07,84004.0,84003.0,1.65101634]
[1742091031328,8.4e-07,84004.0,84003.0,1.68814458]
[1742091031529,8.4e-07,84004.0,84003.0,1.68914458]
[1742091031727,8.4e-07,84004.0,84003.0,1.68614458]
[1742091031934,8.4e-07,84004.0,84003.0,1.69114458]
[1742091032314,8.4e-07,84004.0,84003.0,1.68924552]
[1742091032517,0.0003388,84037.0,84014.0,0.249957]
[1742091032712,0.00038054,84015.0,84014.0,0.31019785]
[1742091032913,0.00038054,84015.0,84014.0,0.31445431]
[1742091033201,0.01903878,84015.0,84014.0,0.31445431]
[1742091034682,0.01903878,84015.0,84014.0,0.32045431]
[1742091035536,0.01903878,84015.0,84014.0,0.32645431]
[1742091035738,0.01903878,84015.0,84014.0,0.40965431]
[1742091036912,0.01903878,84015.0,84014.0,0.43306439]
[1742091041620,0.01903878,84015.0,84014.0,1.18894439]
[1742091043132,0.01903878,84015.0,84014.0,1.21981431]
[1742091044369,0.01903878,84015.0,84014.0,1.21997431]
[1742091044574,0.01903878,84015.0,84014.0,1.17327431]
[1742091044783,0.01903878,84015.0,84014.0,1.03563431]
[1742091044990,0.01903878,84015.0,84014.0,1.17327431]
[1742091046751,0.01903878,84015.0,84014.0,1.02109346]
[1742091046997,0.00038054,84015.0,84014.0,1.02109346]
[1742091047248,0.00038054,84015.0,84014.0,1.01019146]
[1742091047445,0.00038054,84015.0,84014.0,1.14767146]
[1742091047914,0.00038054,84015.0,84014.0,1.14167146]
[1742091048600,0.00138054,84015.0,84014.0,1.15257346]
[1742091049030,0.00038054,84015.0,84014.0,1.15357346]
[1742091049452,0.00038054,84015.0,84014.0,1.14757346]
[1742091049768,0.00038054,84015.0,84014.0,1.15357346]
[1742091051033,0.00138054,84015.0,84014.0,1.15857346]
[1742091051625,0.02004044,84015.0,84014.0,1.15857346]
[1742091052846,0.02004044,84015.0,84014.0,1.00919146]
[1742091053083,0.02004044,84015.0,84014.0,0.90849646]
[1742091053545,0.02004044,84015.0,84014.0,0.92039846]
[1742091054272,0.02004044,84015.0,84014.0,0.90849646]
[1742091054712,0.02004044,84015.0,84014.0,0.92039846]
[1742091055916,0.02004044,84015.0,84014.0,0.16451846]
[1742091056094,0.02004044,84015.0,84014.0,0.02715846]
[1742091056505,0.02004044,84015.0,84014.0,0.01525646]
[1742091058647,0.02004044,84015.0,84014.0,0.01542576]
[1742091059451,0.25809244,84015.0,84014.0,0.01542576]
[1742091059631,0.02004044,84015.0,84014.0,0.01542576]
[1742091059841,0.25809244,84015.0,84014.0,0.01542576]
[1742091060798,0.02004044,84015.0,84014.0,0.01542576]
[1742091062245,0.02000044,84015.0,84014.0,0.01542576]
[1742091065590,0.02000044,84015.0,84014.0,0.25348076]
[1742091065802,0.02000044,84015.0,84014.0,0.26538276]
[1742091069491,0.02000044,84015.0,84014.0,0.01542576]
[1742091069940,0.26995444,84015.0,84014.0,0.01542576]
[1742091070372,0.26995444,84015.0,84014.0,0.0111693]
[1742091071385,0.26995444,84015.0,84014.0,0.1481293]
[1742091074550,0.26995444,84015.0,84014.0,0.0111693]
[1742091074746,0.56995444,84015.0,84014.0,0.0111693]
[1742091074954,0.55129454,84015.0,84014.0,0.0111693]
[1742091075558,0.55129454,84015.0,84014.0,0.0051693]
[1742091075758,0.55129454,84015.0,84014.0,0.0001693]
[1742091075759,0.55029454,84015.0,84014.0,0.0001693]
[1742091076131,0.55029454,84015.0,84014.0,0.0061693]
[1742091076298,0.55029454,84015.0,84014.0,0.0031693]
[1742091077731,0.55029454,84015.0,84014.0,0.0061693]
[1742091078874,0.30034054,84015.0,84014.0,0.0061693]
[1742091079227,0.31900203,84015.0,84014.0,0.01059541]
[1742091079426,0.31900203,84015.0,84014.0,0.0061693]
[1742091080499,0.33090403,84015.0,84014.0,0.0061693]
[1742091080719,0.56895603,84015.0,84014.0,0.0061693]
[1742091086246,0.81057053,84015.0,84014.0,3e-07]
[1742091086488,0.69445603,84015.0,84014.0,3e-07]
[1742091086643,0.67579454,84015.0,84014.0,3e-07]
[1742091087897,0.549987,84004.0,84003.0,0.0001693]
[1742091088106,0.628587,84004.0,84003.0,0.0001693]
[1742091089287,0.628587,84004.0,84003.0,0.0041693]
[1742091089497,0.64725267,84004.0,84003.0,0.0041693]
[1742091089941,0.64725267,84004.0,84003.0,0.0071693]
[1742091090289,1.11183956,84004.0,84003.0,0.0071693]
[1742091090691,1.61835959,84004.0,84003.0,3e-07]
[1742091090893,1.23141459,84004.0,84003.0,3e-07]
[1742091091124,1.11183956,84004.0,84003.0,3e-07]
[1742091091321,0.628596,84001.0,84000.0,0.17343618]
[1742091091523,1.628596,84001.0,84000.0,0.17343618]
[1742091092129,0.628596,84001.0,84000.0,0.17343618]
[1742091092732,1.628596,84001.0,84000.0,0.17343618]
[1742091093285,0.855751,84001.0,84000.0,0.17343618]
[1742091094030,0.859751,84001.0,84000.0,0.17343618]
[1742091094442,1.27732479,84001.0,84000.0,0.17343618]
[1742091098560,1.27732479,84001.0,84000.0,0.15476869]
[1742091100753,1.30143612,84001.0,84000.0,0.15476869]
[1742091104189,1.43843612,84001.0,84000.0,0.15476869]
[1742091105302,1.45710342,84001.0,84000.0,0.15476869]
[1742091105714,1.57667845,84001.0,84000.0,0.15476869]
[1742091105994,1.45710342,84001.0,84000.0,0.15476869]
[1742091106810,1.23294842,84001.0,84000.0,0.15476869]
[1742091107100,1.63340842,84001.0,84000.0,0.15476869]
[1742091107296,1.59373442,84001.0,84000.0,0.15476869]
[1742091107508,1.56413442,84001.0,84000.0,0.15476869]
[1742091107674,1.52569142,84001.0,84000.0,0.15476869]
[1742091108808,1.27059842,84001.0,84000.0,0.15476869]
[1742091110924,1.38560673,84001.0,84000.0,0.15476869]
[1742091111326,1.27059842,84001.0,84000.0,0.15476869]
[1742091114383,1.13359842,84001.0,84000.0,0.15476869]
[1742091116559,1.13393702,84001.0,84000.0,0.15476869]
[1742091116970,1.13393702,84001.0,84000.0,0.13876869]
[1742091117142,1.11526972,84001.0,84000.0,0.13876869]
[1742091117343,1.2493856,84001.0,84000.0,0.13876869]
[1742091117568,1.3252856,84001.0,84000.0,0.13876869]
[1742091117769,1.3252856,84001.0,83984.0,0.0001694]
[1742091117770,0.3,83998.0,83997.0,7.1e-07]
[1742091117977,0.32644585,83998.0,83997.0,7.1e-07]
[1742091119089,0.02944585,83998.0,83997.0,7.1e-07]
[1742091119291,0.03444585,83998.0,83997.0,7.1e-07]
[1742091119527,0.03144585,83998.0,83997.0,7.1e-07]
[1742091119659,0.03644585,83998.0,83997.0,7.1e-07]
[1742091120664,0.15170726,83998.0,83997.0,7.1e-07]
[1742091120852,0.86939415,83998.0,83997.0,7.1e-07]
[1742091123855,0.86939415,83998.0,83980.0,0.00788555]
[1742091123856,0.02644785,83981.0,83980.0,0.00788555]
[1742091124073,0.550058,83980.0,83959.0,0.0771]
[1742091124232,0.550058,83980.0,83974.0,0.1249]
[1742091124741,0.56873101,83980.0,83974.0,0.1249]
[1742091125287,0.58069165,83980.0,83974.0,0.1249]
[1742091125518,0.58369165,83980.0,83974.0,0.1249]
[1742091126119,0.58669165,83980.0,83974.0,0.1249]
[1742091128662,0.58669165,83980.0,83979.0,0.0301693]
[1742091134797,0.93801665,83980.0,83979.0,0.0301693]
[1742091135301,0.93266053,83980.0,83979.0,0.0301693]
[1742091135520,1.18038239,83980.0,83979.0,0.0301693]
[1742091135928,1.16728239,83980.0,83979.0,0.0301693]
[1742091138112,1.01891939,83980.0,83979.0,0.0301693]
[1742091138335,1.18066839,83980.0,83979.0,0.0301693]
[1742091138534,1.00437854,83980.0,83979.0,0.0301693]
[1742091141547,1.00471734,83980.0,83979.0,0.0301693]
[1742091142284,1.02681832,83980.0,83979.0,0.0301693]
[1742091145043,1.47523932,83980.0,83979.0,0.0301693]
[1742091145579,1.59481435,83980.0,83979.0,0.0301693]
[1742091145979,1.48793035,83980.0,83979.0,0.0301693]
[1742091146756,1.33875532,83980.0,83979.0,0.0301693]
[1742091146889,1.19334832,83980.0,83979.0,0.0301693]
[1742091150333,1.18000832,83980.0,83979.0,0.0301693]
[1742091151068,1.02681832,83980.0,83979.0,0.0301693]
[1742091152973,1.02669924,83980.0,83979.0,0.0301693]
[1742091164436,1.00459826,83980.0,83979.0,0.0301693]
[1742091173632,1.00459826,83980.0,83979.0,0.1107693]
[1742091173802,1.00459826,83980.0,83979.0,0.1571693]
[1742091175616,0.33697245,83980.0,83979.0,0.1571693]
[1742091175816,0.01829944,83980.0,83979.0,0.1571693]
[1742091176129,0.01829944,83980.0,83979.0,0.16141046]
[1742091176332,0.01529944,83980.0,83979.0,0.16141046]
[1742091176743,0.01629944,83980.0,83979.0,0.16141046]
[1742091176940,0.01529944,83980.0,83979.0,0.16141046]
[1742091177357,0.01629944,83980.0,83979.0,0.16141046]
[1742091177652,0.01329944,83980.0,83979.0,0.16141046]
[1742091178064,0.01429944,83980.0,83979.0,0.16141046]
[1742091178429,0.03197036,83980.0,83979.0,0.16141046]
[1742091178865,0.03297036,83980.0,83979.0,0.16141046]
[1742091183420,0.0210789,83980.0,83979.0,0.39956446]
[1742091184036,0.03295979,83980.0,83979.0,0.16141046]
[1742091191876,0.0210789,83980.0,83979.0,0.16141046]
[1742091193701,0.0210789,83980.0,83979.0,0.17331746]
[1742091195531,0.00240798,83980.0,83979.0,0.17331746]
[1742091196116,0.00140798,83980.0,83979.0,0.17450796]
[1742091196910,0.00040798,83980.0,83979.0,0.17450796]
[1742091198154,0.01907666,83980.0,83979.0,0.17450796]
[1742091198372,0.01907666,83980.0,83979.0,0.17331746]
[1742091198784,0.02007666,83980.0,83979.0,0.17331746]
[1742091199304,0.02007666,83980.0,83979.0,0.174508]
[1742091201571,0.02007666,83980.0,83979.0,0.18668364]
[1742091203203,0.01907666,83980.0,83979.0,0.18668364]
[1742091203611,0.02007666,83980.0,83979.0,0.19168364]
[1742091203870,0.02107666,83980.0,83979.0,0.20622449]
[1742091204069,0.0003386,83998.0,83979.0,0.20622449]
[1742091204278,0.00042762,83998.0,83997.0,0.375108]
[1742091204477,0.00042762,83998.0,83997.0,0.510068]
[1742091204677,0.00042762,83998.0,83997.0,0.5142844]
[1742091204881,0.00042762,83998.0,83997.0,0.5132844]
[1742091206438,0.00042762,83998.0,83997.0,1.2746044]
[1742091206622,0.00142762,83998.0,83997.0,1.29514525]
[1742091206771,0.00142762,83998.0,83997.0,1.31942167]
[1742091207485,0.00042762,83998.0,83997.0,1.31942167]
[1742091207682,0.00142762,83998.0,83997.0,1.32442167]
[1742091209152,0.00142762,83998.0,83997.0,1.33328292]
[1742091209355,0.00142762,83998.0,83997.0,1.32728292]
[1742091209499,0.00142762,83998.0,83997.0,1.33328292]
[1742091209701,0.00042762,83998.0,83997.0,1.32828292]
[1742091209897,0.00042762,83998.0,83997.0,1.33428292]
[1742091210153,0.00042762,83998.0,83997.0,1.38428292]
[1742091212473,0.00042762,83998.0,83997.0,1.33428292]
[1742091212795,0.00042762,83998.0,83997.0,1.38428292]
[1742091213409,0.00042762,83998.0,83997.0,1.33428292]
[1742091213702,0.00042762,83998.0,83997.0,1.19932292]
[1742091213901,0.00042762,83998.0,83997.0,1.2814844]
[1742091215713,0.00042762,83998.0,83997.0,1.2754844]
[1742091215878,0.00042762,83998.0,83997.0,1.2694844]
[1742091216073,0.00042762,83998.0,83997.0,1.2754844]
[1742091216590,0.00042762,83998.0,83997.0,1.2694844]
[1742091216928,0.00042762,83998.0,83997.0,1.2754844]
[1742091217166,0.00042762,83998.0,83997.0,1.2804844]
[1742091217804,0.00042762,83998.0,83997.0,1.2754844]
[1742091217961,0.00042762,83998.0,83997.0,1.2804844]
[1742091222155,0.00042762,83998.0,83997.0,1.2806537]
[1742091225061,0.00042762,83998.0,83997.0,1.2856537]
[1742091229409,0.00042762,83998.0,83997.0,1.30019455]
[1742091229572,0.00042762,83998.0,83997.0,1.35019455]
[1742091231342,0.00042762,83998.0,83997.0,1.30019455]
[1742091231553,0.00042762,83998.0,83997.0,1.35019455]
[1742091232831,0.00042762,83998.0,83997.0,1.30019455]
[1742091233185,0.00042762,83998.0,83997.0,1.35019455]
[1742091234492,0.00042762,83998.0,83997.0,1.30019455]
[1742091234692,0.00042762,83998.0,83997.0,1.35019455]
[1742091234928,0.00042762,83998.0,83997.0,1.34419455]
[1742091235134,0.00042762,83998.0,83997.0,1.35019455]
[1742091235972,0.00042762,83998.0,83997.0,1.29519455]
[1742091236142,0.00042762,83998.0,83997.0,1.34519455]
[1742091236345,0.00042762,83998.0,83997.0,1.30119455]
[1742091236548,0.00042762,83998.0,83997.0,1.35119455]
[1742091236745,0.00042762,83998.0,83997.0,1.30119455]
[1742091237065,0.00042762,83998.0,83997.0,1.35119455]
[1742091237572,0.00042762,83998.0,83997.0,1.38838259]
[1742091238190,0.00042762,83998.0,83997.0,1.35119455]
[1742091238391,0.00042762,83998.0,83997.0,1.38839206]
[1742091242612,6.2e-07,83998.0,83997.0,1.68839206]
[1742091242817,8.2e-07,84003.0,84002.0,0.31953385]
[1742091243013,8.2e-07,84003.0,84002.0,0.78283136]
[1742091243221,8.2e-07,84003.0,84002.0,0.78738381]
[1742091244565,8.2e-07,84003.0,84002.0,0.79338381]
[1742091244705,8.2e-07,84003.0,84002.0,0.79938381]
[1742091245944,8.2e-07,84003.0,84002.0,0.79955311]
[1742091247634,8.2e-07,84003.0,84002.0,0.35231226]
[1742091247839,8.2e-07,84003.0,84002.0,0.40131475]
[1742091248424,8.2e-07,84003.0,84002.0,0.39531475]
[1742091248974,8.2e-07,84003.0,84002.0,0.38931475]
[1742091249143,8.2e-07,84003.0,84002.0,0.39531475]
[1742091249390,8.2e-07,84003.0,84002.0,0.26071475]
[1742091249596,8.2e-07,84003.0,84002.0,0.39531475]
[1742091250130,8.2e-07,84003.0,84002.0,0.40131475]
[1742091250326,8.2e-07,84003.0,84002.0,0.26071475]
[1742091250581,8.2e-07,84003.0,84002.0,0.38931475]
[1742091250782,0.01866211,84003.0,84002.0,0.39531475]
[1742091250957,0.01866211,84003.0,84002.0,0.40131475]
[1742091255802,0.01866211,84003.0,84002.0,0.26671475]
[1742091255941,0.01866211,84003.0,84002.0,0.40131475]
[1742091256296,8.2e-07,84003.0,84002.0,0.40131475]
[1742091256805,8.2e-07,84003.0,84002.0,0.39531475]
[1742091257204,8.2e-07,84003.0,84002.0,0.40131475]
[1742091257410,8.2e-07,84003.0,84002.0,0.39531475]
[1742091257581,8.2e-07,84003.0,84002.0,0.38931475]
[1742091257785,8.2e-07,84003.0,84002.0,0.40131475]
[1742091257968,8.2e-07,84003.0,84002.0,0.39531475]
[1742091258380,8.2e-07,84003.0,84002.0,0.40131475]
[1742091258604,0.29529982,84015.0,84014.0,0.238055]
[1742091258769,0.1277,84016.0,84014.0,0.24241712]
[1742091260709,0.14636146,84016.0,84014.0,0.24241712]
[1742091260914,0.14636146,84016.0,84014.0,0.24541712]
[1742091261117,0.14636146,84016.0,84014.0,0.24741712]
[1742091261316,0.14636146,84016.0,84014.0,0.24441712]
[1742091261701,0.14636146,84016.0,84014.0,0.24741712]
[1742091262642,0.14636146,84016.0,84014.0,0.00936212]
[1742091268847,0.14670006,84016.0,84014.0,0.00936212]
[1742091279445,0.238052,84015.0,84014.0,0.00936212]
[1742091280434,0.238052,84015.0,84014.0,0.00653142]
[1742091280634,0.15860206,84016.0,84014.0,0.00653142]
[1742091280810,0.39665406,84016.0,84014.0,0.00653142]
[1742091281027,0.39665406,84016.0,84014.0,0.00753142]
[1742091281347,0.39665406,84016.0,84014.0,0.01053142]
[1742091281646,0.39665406,84016.0,84014.0,0.00753142]
[1742091281877,0.39665406,84016.0,84014.0,0.00453142]
[1742091282229,0.39665406,84016.0,84014.0,0.00653142]
[1742091282430,0.10100006,84016.0,84014.0,0.00653142]
[1742091282640,0.01900006,84016.0,84014.0,0.24458642]
[1742091283065,0.01900006,84016.0,84015.0,0.01309205]
[1742091283269,0.01900006,84016.0,84015.0,0.09019205]
[1742091283496,0.0003386,84016.0,84015.0,0.09336322]
[1742091284051,0.0003386,84016.0,84015.0,0.22796322]
[1742091284477,0.0003386,84016.0,84015.0,0.23196322]
[1742091284685,0.0003386,84016.0,84015.0,0.23796322]
[1742091284999,0.0003386,84016.0,84015.0,0.22796322]
[1742091285250,0.0003386,84016.0,84015.0,0.23396322]
[1742091285439,0.0003386,84016.0,84015.0,0.16286322]
[1742091286234,0.01899858,84016.0,84015.0,0.16286322]
[1742091287255,0.01899858,84016.0,84015.0,0.16405332]
[1742091287667,0.01899858,84016.0,84015.0,0.16286322]
[1742091293183,0.01899858,84016.0,84015.0,0.16303252]
[1742091294950,0.01899858,84016.0,84015.0,0.02843252]
[1742091295397,0.03090058,84016.0,84015.0,0.01653052]
[1742091295731,0.03090058,84016.0,84015.0,0.0121693]
[1742091295933,0.0122406,84016.0,84015.0,0.01652715]
[1742091296147,0.0122406,84016.0,84015.0,0.01052715]
[1742091296341,0.0122406,84016.0,84015.0,0.01652715]
[1742091296576,0.0122406,84016.0,84015.0,0.0121693]
[1742091296750,0.0122406,84016.0,84015.0,0.0061693]
[1742091297172,0.0122406,84016.0,84015.0,0.0021693]
[1742091297381,0.0122406,84016.0,84015.0,0.0071693]
[1742091297806,0.0122406,84016.0,84015.0,0.0021693]
[1742091298007,0.0122406,84016.0,84015.0,0.0041693]
[1742091298676,0.0122406,84016.0,84015.0,0.00892687]
[1742091299478,0.0122406,84016.0,84015.0,0.0041693]
[1742091299895,0.03090235,84016.0,84015.0,0.0041693]
[1742091302412,0.46433549,84016.0,84015.0,0.0041693]
[1742091302619,0.54683549,84016.0,84015.0,0.0041693]
[1742091302832,1.4762432,84016.0,84015.0,0.0041693]
[1742091303253,1.4762432,84016.0,84015.0,0.0021693]
[1742091303669,0.56449485,84015.0,84014.0,6e-07]
[1742091303884,0.68353085,84003.0,84002.0,0.0001693]
[1742091304296,1.68353085,84003.0,84002.0,0.0001693]
[1742091304755,1.70219855,84003.0,84002.0,0.0001693]
[1742091305773,1.56289955,84003.0,84002.0,0.0001693]
[1742091305974,1.68247458,84003.0,84002.0,0.0001693]
[1742091306521,1.56289955,84003.0,84002.0,0.0001693]
[1742091308276,1.572019,84003.0,84002.0,0.0001693]
[1742091308473,1.98970589,84003.0,84002.0,0.0001693]
[1742091309904,2.01385256,84003.0,84002.0,0.0001693]
[1742091310456,2.01685256,84003.0,84002.0,0.0001693]
[1742091310880,2.13642759,84003.0,84002.0,0.0001693]
[1742091311490,2.13942759,84003.0,84002.0,0.0001693]
[1742091312893,2.01985256,84003.0,84002.0,0.0001693]
[1742091319457,1.92683556,84003.0,84002.0,0.0001693]
[1742091322732,0.69234459,84003.0,84002.0,0.0001693]
[1742091323206,0.97367689,84003.0,84002.0,0.0001693]
[1742091323770,0.97067689,84003.0,84002.0,0.0001693]
[1742091324985,0.96767689,84003.0,84002.0,0.0001693]
[1742091325218,0.96967689,84003.0,84002.0,0.0001693]
[1742091325752,0.98834424,84003.0,84002.0,0.0001693]
[1742091328676,0.98834424,84003.0,84002.0,0.0002883]
[1742091329904,0.3,83992.0,83990.0,0.07917237]
[1742091330109,0.30041539,83992.0,83990.0,0.07917237]
[1742091330305,0.30041539,83992.0,83991.0,0.00479128]
[1742091330507,0.31232039,83992.0,83991.0,0.00479128]
[1742091330710,0.33098809,83992.0,83990.0,0.07917237]
[1742091330887,0.011906,83991.0,83990.0,0.07917237]
[1742091332089,0.011906,83991.0,83990.0,0.08017237]
[1742091332304,0.011906,83991.0,83990.0,0.07917237]
[1742091332474,0.011906,83991.0,83990.0,0.08117237]
[1742091332831,0.011906,83991.0,83990.0,0.08317237]
[1742091332967,0.011906,83991.0,83990.0,0.002]
[1742091333172,0.011906,83991.0,83990.0,0.005]
[1742091333695,0.42120161,83991.0,83990.0,0.005]
[1742091333890,0.311906,83991.0,83990.0,0.0015]
[1742091334893,0.011906,83987.0,83980.0,0.238151]
[1742091335091,0.3,83985.0,83980.0,0.238151]
[1742091335289,0.311906,83985.0,83981.0,0.00480262]
[1742091335501,0.3,83983.0,83979.0,0.0301693]
[1742091335903,0.3,83983.0,83980.0,0.00480459]
[1742091336738,0.31866873,83983.0,83980.0,0.00480459]
[1742091337775,0.31866873,83983.0,83980.0,0.00780459]
[1742091338760,0.31866873,83983.0,83980.0,0.00980459]
[1742091340152,0.31866873,83983.0,83980.0,0.00997399]
[1742091342214,0.01866873,83983.0,83980.0,0.00997399]
[1742091342663,0.01866873,83983.0,83982.0,0.250053]
[1742091343011,0.01866873,83983.0,83982.0,0.25445635]
[1742091343134,0.01866873,83983.0,83982.0,0.38245635]
[1742091343730,0.01866873,83983.0,83982.0,0.37745635]
[1742091344002,0.01866873,83983.0,83982.0,0.38045635]
[1742091344481,0.01866873,83983.0,83982.0,0.37745635]
[1742091344710,0.01866873,83983.0,83982.0,0.38245635]
[1742091345759,0.01866873,83983.0,83982.0,0.38345635]
[1742091346164,0.01866873,83983.0,83982.0,0.38245635]
[1742091346364,0.01866873,83983.0,83982.0,0.38645635]
[1742091353730,0.01866873,83983.0,83982.0,0.38662575]
[1742091353865,0.01900753,83983.0,83982.0,0.38662575]
[1742091355066,0.0003388,83983.0,83982.0,0.38662575]
[1742091358050,0.01900507,83983.0,83982.0,0.38662575]
[1742091359349,0.01900507,83983.0,83982.0,0.37762575]
[1742091359549,0.01900507,83983.0,83982.0,0.38862575]
[1742091363280,0.01900507,83983.0,83982.0,0.41206558]
[1742091366173,0.01900507,83983.0,83982.0,0.38862575]
[1742091374217,0.01900507,83983.0,83982.0,0.38552575]
[1742091374409,0.0003388,83983.0,83982.0,0.39052575]
[1742091375015,8e-07,83983.0,83982.0,0.39052575]
[1742091375370,1.9e-07,83992.0,83991.0,0.255026]
[1742091375577,1.9e-07,83992.0,83991.0,0.53286685]
[1742091375783,1.9e-07,83992.0,83991.0,0.53765651]
[1742091376614,1.9e-07,83992.0,83991.0,0.54365651]
[1742091376828,1.9e-07,83992.0,83991.0,0.93084859]
[1742091377441,1.9e-07,83992.0,83991.0,0.93684859]
[1742091378668,1.9e-07,83992.0,83991.0,1.63084859]
[1742091378871,1.9e-07,83992.0,83991.0,1.62484859]
[1742091379075,1.9e-07,83992.0,83991.0,1.63684859]
[1742091379612,1.9e-07,83992.0,83991.0,1.6612163]
[1742091380443,1.9e-07,83992.0,83991.0,1.62402422]
[1742091380646,1.9e-07,83992.0,83991.0,1.66114277]
[1742091381422,2.8e-07,84005.0,84004.0,0.26952785]
[1742091381626,0.0003386,84014.0,84013.0,0.24996]
[1742091381841,0.0003386,84014.0,84013.0,0.46392]
[1742091382051,0.0003386,84014.0,84013.0,0.5178124]
[1742091382463,0.0003386,84014.0,84013.0,0.5228124]
[1742091382882,6e-07,84014.0,84013.0,0.53735325]
[1742091383088,0.0003388,84037.0,84015.0,0.74819485]
[1742091383089,2e-07,84016.0,84015.0,0.74819485]
[1742091383511,2e-07,84016.0,84015.0,0.75278356]
[1742091383918,2e-07,84016.0,84015.0,0.76472163]
[1742091384131,2e-07,84016.0,84015.0,0.88429666]
[1742091384540,8e-07,84037.0,84036.0,0.334292]
[1742091384743,2.9e-07,84041.0,84040.0,0.25488]
[1742091384946,2.9e-07,84041.0,84040.0,1.01088]
[1742091385203,0.0003388,84067.0,84063.0,0.249811]
[1742091385432,0.0003388,84067.0,84063.0,0.384371]
[1742091385638,0.0003388,84067.0,84063.0,0.38890459]
[1742091385854,0.00046351,84064.0,84063.0,0.38890459]
[1742091386974,0.00046351,84064.0,84063.0,0.39290459]
[1742091387177,0.00046351,84064.0,84063.0,0.25834459]
[1742091387377,0.00046351,84064.0,84063.0,0.39286459]
[1742091388348,0.00046351,84064.0,84063.0,0.39086459]
[1742091388751,0.00046351,84064.0,84063.0,0.39486459]
[1742091388952,0.00046351,84064.0,84063.0,0.39886459]
[1742091389158,0.00046351,84064.0,84063.0,0.39486459]
[1742091389566,0.00046351,84064.0,84063.0,0.40086459]
[1742091392190,0.00046351,84064.0,84063.0,0.47826459]
[1742091393015,0.00046351,84064.0,84063.0,0.47226459]
[1742091393222,0.00046351,84064.0,84063.0,0.47626459]
[1742091393448,0.00046351,84064.0,84063.0,0.47226459]
[1742091393650,0.00046351,84064.0,84063.0,0.47726459]
[1742091395228,0.00046351,84064.0,84063.0,0.47126459]
[1742091395494,0.00046351,84064.0,84063.0,0.47242459]
[1742091395904,0.00046351,84064.0,84063.0,0.47842459]
[1742091396477,0.00046351,84064.0,84063.0,1.23402459]
[1742091398322,0.00046351,84064.0,84063.0,1.15662459]
[1742091401356,0.00046351,84064.0,84063.0,1.02194459]
[1742091401744,0.00046351,84064.0,84063.0,1.15662459]
[1742091404361,0.00046351,84064.0,84063.0,1.15650459]
[1742091404534,0.00046351,84064.0,84063.0,1.02194459]
[1742091404869,0.00046351,84064.0,84063.0,1.15650459]
[1742091405277,0.00046351,84064.0,84063.0,1.15050459]
[1742091405822,0.00046351,84064.0,84063.0,1.15650459]
[1742091410823,0.00046351,84064.0,84063.0,1.02194459]
[1742091411033,0.00046351,84064.0,84063.0,1.15638459]
[1742091413720,0.00046351,84064.0,84063.0,1.00404959]
[1742091413924,0.00046351,84064.0,84063.0,1.13856959]
[1742091414121,0.00046351,84064.0,84063.0,1.15046459]
[1742091414344,0.00046351,84064.0,84063.0,1.14446459]
[1742091414473,0.00046351,84064.0,84063.0,1.15046459]
[1742091414681,0.00046351,84064.0,84063.0,1.01594459]
[1742091414887,0.00046351,84064.0,84063.0,1.15042459]
[1742091415694,0.00046351,84064.0,84063.0,1.15542459]
[1742091420461,0.00046351,84064.0,84063.0,0.39982459]
[1742091420670,0.00046351,84064.0,84063.0,0.43701463]
[1742091420923,0.00046351,84064.0,84063.0,0.42386211]
[1742091421131,0.00046351,84064.0,84063.0,0.46105196]
[1742091421538,0.00046351,84064.0,84063.0,0.42386211]
[1742091421774,0.00046351,84064.0,84063.0,0.43701725]
[1742091421968,0.00046351,84064.0,84063.0,0.39982459]
[1742091424050,0.00046351,84064.0,84063.0,0.39978459]
[1742091427208,0.00046351,84064.0,84063.0,0.26534459]
[1742091427377,0.00046351,84064.0,84063.0,0.39978459]
[1742091428829,0.00046351,84064.0,84063.0,0.38788959]
[1742091431011,0.00046351,84064.0,84063.0,0.39978459]
[1742091433553,0.00046351,84064.0,84063.0,0.38788959]
[1742091435242,0.00046351,84064.0,84063.0,0.26534459]
[1742091435440,0.63217151,84064.0,84063.0,0.01553359]
[1742091435652,0.67717151,84064.0,84063.0,0.01553359]
[1742091435905,0.67717151,84064.0,84063.0,0.011]
[1742091436320,0.68938263,84064.0,84063.0,0.011]
[1742091436521,0.68938263,84064.0,84063.0,0.006]
[1742091436850,0.68938263,84064.0,84063.0,0.008]
[1742091437540,0.70392348,84064.0,84063.0,0.008]
[1742091437873,0.70392348,84064.0,84063.0,0.002]
[1742091438091,0.70392348,84064.0,84063.0,0.005]
[1742091438633,0.70392348,84064.0,84063.0,0.002]
[1742091438839,0.249886,84038.0,84036.0,0.13448]
[1742091440077,0.25001064,84038.0,84036.0,0.13448]
[1742091440451,0.25001064,84038.0,84037.0,0.0031693]
[1742091440818,0.25001064,84038.0,84037.0,0.00804249]
[1742091441025,0.25001064,84038.0,84037.0,0.0071693]
[1742091446220,0.55001064,84038.0,84037.0,0.0071693]
[1742091459293,0.55034944,84038.0,84037.0,0.0071693]
[1742091465969,0.59744944,84038.0,84037.0,0.0071693]
[1742091466321,0.69379029,84038.0,84037.0,0.0071693]
[1742091466541,1.02343029,84038.0,84037.0,0.0071693]
[1742091467415,1.02343029,84038.0,84037.0,0.0041693]
[1742091467657,1.02443029,84038.0,84037.0,0.0001693]
[1742091469798,1.44211718,84038.0,84037.0,0.0001693]
[1742091470215,1.12139334,84038.0,84037.0,0.0001693]
[1742091470420,1.88115834,84038.0,84037.0,0.0001693]
[1742091471601,1.68079834,84038.0,84037.0,0.0001693]
[1742091472176,1.70508066,84038.0,84037.0,0.0001693]
[1742091475627,1.52923366,84038.0,84037.0,0.0001693]
[1742091477931,1.14567566,84038.0,84037.0,0.0001693]
[1742091479009,1.01677566,84038.0,84037.0,0.0001693]
[1742091479212,0.66903633,84038.0,84037.0,0.0001693]
[1742091479644,0.96903633,84038.0,84037.0,0.0001693]
[1742091480429,0.96803633,84038.0,84037.0,0.0001693]
[1742091480938,0.98257718,84038.0,84037.0,0.0001693]
[1742091487893,5.98257718,84038.0,84037.0,0.0001693]
[1742091493762,5.71815033,84038.0,84037.0,0.0806693]
[1742091494049,5.73004933,84038.0,84037.0,0.0001693]
[1742091496060,5.73004933,84038.0,84037.0,0.0011693]
[1742091497744,5.71815033,84038.0,84037.0,0.0011693]
[1742091497944,5.71815033,84038.0,84037.0,0.0910683]
[1742091497945,5.00046344,84038.0,84037.0,0.0910683]
[1742091498727,5.00046344,84038.0,84037.0,0.0900683]
[1742091499151,5.00046344,84038.0,84037.0,0.14785118]